bitfinex/quotes_SOLUSD_20250125
["timestamp","ask_amount","ask_price","bid_price","bid_amount"]
[1737818652773,0.03,254.25,254.18,0.39323258]
[1737818653501,0.03,254.25,254.19,13.7691]
[1737818653700,0.03,254.25,254.19,3.934]
[1737818654284,0.03,254.25,254.15,3.9346]
[1737818654485,0.03,254.25,254.16,0.3933615]
[1737818654797,0.03,254.25,254.18,20.0]
[1737818655179,0.03,254.25,254.19,0.39330883]
[1737818655589,0.03,254.25,254.2,3.9339]
[1737818655895,0.03,254.25,254.18,3.9341]
[1737818656878,0.03,254.25,254.13,3.9349]
[1737818657100,0.03,254.25,254.14,0.39335472]
[1737818657606,0.03,254.25,254.15,3.9346]
[1737818658297,0.03,254.25,254.16,0.39336261]
[1737818659004,0.03,254.25,254.17,3.9343]
[1737818659202,0.03,254.25,254.18,0.39332929]
[1737818660594,0.03,254.25,254.17,3.9343]
[1737818660788,0.03,254.25,254.14,0.39334022]
[1737818660989,0.03,254.25,254.15,3.9346]
[1737818661187,0.03,254.25,254.16,0.3933277]
[1737818662005,0.03,254.25,254.15,3.9346]
[1737818662385,1.5461,254.24,254.15,3.9346]
[1737818662783,1.5461,254.24,254.11,3.9353]
[1737818662983,1.5461,254.24,254.12,0.39337761]
[1737818663286,2.3327,254.24,254.12,0.39337761]
[1737818663604,1.5461,254.24,254.12,0.39337761]
[1737818665000,1.5461,254.24,254.13,13.7723]
[1737818665207,1.5461,254.24,254.14,0.39326416]
[1737818666320,0.03,254.25,254.14,0.39326416]
[1737818667694,0.03,254.25,254.15,3.9346]
[1737818667893,0.03,254.25,254.16,0.39331595]
[1737818669119,0.03,254.25,254.17,3.9343]
[1737818669315,0.03,254.25,254.18,0.39331252]
[1737818670803,0.03,254.25,254.19,3.934]
[1737818671107,0.03,254.25,254.2,0.39331289]
[1737818671797,0.03,254.25,254.17,3.9343]
[1737818672118,0.03,254.25,254.18,0.39328298]
[1737818672798,0.03,254.25,254.19,3.934]
[1737818673009,0.03,254.25,254.2,0.39328796]
[1737818673224,0.03,254.25,254.19,3.934]
[1737818674019,0.03,254.25,254.17,3.9343]
[1737818674515,0.03,254.25,254.18,0.39332756]
[1737818675522,0.03,254.25,254.19,4.32729952]
[1737818675909,0.03,254.25,254.19,3.82729952]
[1737818676708,0.03,254.25,254.19,0.39329952]
[1737818676905,0.03,254.25,254.13,0.39331824]
[1737818677504,1.5595,254.24,254.09,14.16791948]
[1737818677827,6.0831,254.23,254.09,3.9356]
[1737818678199,6.0831,254.23,254.1,0.39347698]
[1737818678415,6.0831,254.23,254.09,13.7746]
[1737818678617,6.0831,254.23,254.05,0.3934237]
[1737818678618,6.0831,254.23,254.05,10.2339237]
[1737818678826,6.0831,254.23,254.06,3.936]
[1737818678827,0.7867,254.22,254.06,3.936]
[1737818679000,0.7867,254.22,254.07,0.39347297]
[1737818679330,6.0831,254.23,254.07,0.39349225]
[1737818679920,6.0831,254.23,254.06,3.936]
[1737818679921,23.776884,254.22,254.06,3.936]
[1737818680121,23.776884,254.22,254.0,0.39347363]
[1737818680122,25.336384,254.18,254.0,0.39347363]
[1737818680418,6.0831,254.17,254.02,3.9366]
[1737818680616,6.0831,254.17,254.03,0.39355427]
[1737818680808,6.0831,254.17,254.04,3.9363]
[1737818681012,6.0831,254.17,254.05,0.39351244]
[1737818681220,6.87,254.17,254.04,3.9363]
[1737818681415,6.0831,254.17,254.05,0.39353366]
[1737818682006,5.5831,254.17,254.05,0.39353366]
[1737818682705,5.5831,254.17,254.06,3.936]
[1737818683277,6.3699,254.17,254.06,3.936]
[1737818684124,23.776884,254.16,254.01,3.9368]
[1737818684636,23.776884,254.14,253.99,3.937]
[1737818684799,0.7869,254.13,253.97,3.9374]
[1737818685006,23.776884,254.12,253.97,3.9374]
[1737818685298,23.776884,254.12,253.98,0.39366597]
[1737818685502,0.7869,254.13,253.98,0.39364255]
[1737818686804,23.776884,254.12,253.99,3.9371]
[1737818687430,23.776884,254.12,253.97,3.9374]
[1737818688811,6.5612,254.08,253.97,3.9374]
[1737818689027,1.5453,254.07,253.97,3.9374]
[1737818689619,1.5453,254.07,253.93,0.063]
[1737818689817,1.5453,254.07,253.95,3.9376]
[1737818690208,1.0,254.04,253.93,0.063]
[1737818690408,6.5612,254.02,253.93,0.063]
[1737818690609,23.776884,253.98,253.93,0.063]
[1737818690927,0.7873,254.01,253.93,0.063]
[1737818691136,23.776884,254.0,253.93,0.063]
[1737818692517,24.564284,254.0,253.93,0.063]
[1737818693207,25.564284,254.0,253.93,0.063]
[1737818693407,23.776884,253.98,253.79,3.9402]
[1737818693609,23.776884,253.94,253.79,3.9402]
[1737818696040,24.564484,253.94,253.79,3.9402]
[1737818696213,0.7874,253.98,253.8,0.39393499]
[1737818696733,8.1065,253.99,253.8,0.39393499]
[1737818697325,23.776884,253.98,253.8,0.39393499]
[1737818697639,23.776884,253.98,253.8,0.39384612]
[1737818697840,24.564284,253.98,253.8,0.39384612]
[1737818698018,8.1065,253.99,253.8,0.39384612]
[1737818698638,8.8939,253.99,253.8,0.39384612]
[1737818699337,23.776884,253.98,253.8,0.39384612]
[1737818699813,23.776884,253.96,253.81,3.9399]
[1737818700323,8.1065,253.99,253.82,0.39391111]
[1737818700525,8.8939,253.99,253.82,0.39391111]
[1737818700822,8.1065,253.99,253.82,0.39391111]
[1737818701024,8.8939,253.99,253.82,0.39391111]
[1737818701741,8.8939,253.99,253.83,3.9396]
[1737818701933,23.776884,253.98,253.83,3.9396]
[1737818703027,23.776884,253.98,253.79,3.9402]
[1737818704139,0.7874,253.97,253.83,0.063]
[1737818704642,24.776884,253.96,253.83,0.063]
[1737818704828,23.776884,253.93,253.83,0.063]
[1737818705336,3.756,253.97,253.83,0.063]
[1737818705544,0.7874,253.97,253.83,0.063]
[1737818705757,0.39393313,253.96,253.79,3.89713313]
[1737818706140,0.7875,253.95,253.77,13.7919]
[1737818707248,0.7874,253.97,253.8,20.0]
[1737818707941,1.5453,253.99,253.8,20.0]
[1737818709031,24.17081713,253.98,253.77,13.7919]
[1737818709233,25.17071713,253.98,253.77,13.7919]
[1737818709541,2.7561,253.97,253.77,13.7919]
[1737818709726,24.17081713,253.96,253.77,13.7919]
[1737818710943,0.7875,253.95,253.77,13.7919]
[1737818711246,0.39393313,253.98,253.77,13.7919]
[1737818711418,0.39393313,253.98,253.8,20.0]
[1737818711419,0.7875,253.97,253.8,20.0]
[1737818711618,0.39393313,253.96,253.77,13.7919]
[1737818712545,0.7875,253.96,253.77,13.7919]
[1737818712924,1.18143313,253.96,253.77,13.7919]
[1737818715240,0.7875,253.96,253.81,13.7897]
[1737818716248,0.39393313,253.95,253.81,9.8498]
[1737818716470,0.7875,253.94,253.81,9.8498]
[1737818717325,0.7875,253.96,253.81,9.8498]
[1737818717526,0.39393313,253.95,253.81,9.8498]
[1737818718326,0.39393313,253.95,253.78,3.9404]
[1737818719733,23.776884,253.93,253.77,0.063]
[1737818719929,20.0,253.89,253.77,0.063]
[1737818720135,24.17081713,253.88,253.77,0.063]
[1737818720328,23.776884,253.86,253.77,0.063]
[1737818720550,0.39393313,253.85,253.77,0.063]
[1737818721456,0.9999,253.8,253.77,0.063]
[1737818721656,0.39393313,253.79,253.77,0.063]
[1737818721835,0.788,253.78,253.77,0.063]
[1737818722035,24.564884,253.78,253.67,0.063]
[1737818722340,24.17081713,253.77,253.67,0.063]
[1737818722553,20.0,253.76,253.67,0.063]
[1737818722729,0.39393313,253.75,253.67,0.063]
[1737818722933,1.5363,253.74,253.67,0.063]
[1737818723244,24.17081713,253.73,253.67,0.063]
[1737818723434,20.0,253.7,253.67,0.063]
[1737818723632,23.776884,253.64,253.43,6.558]
[1737818723831,0.39393313,253.63,253.44,25.2]
[1737818724058,0.39393313,253.63,253.52,3.9444]
[1737818724354,0.39393313,253.63,253.44,25.2]
[1737818724355,20.0,253.61,253.47,3.9451]
[1737818724528,0.39393313,253.6,253.47,3.9451]
[1737818724727,24.17081713,253.6,253.44,3.9455]
[1737818724925,0.39393313,253.6,253.43,6.558]
[1737818725152,1.18243313,253.64,253.48,3.945]
[1737818725327,1.18243313,253.64,253.49,3.9448]
[1737818725528,23.776884,253.61,253.43,6.558]
[1737818725753,0.7886,253.59,253.45,3.9454]
[1737818725955,0.39393313,253.58,253.45,3.9454]
[1737818726261,24.17081713,253.58,253.43,6.558]
[1737818726471,24.17081713,253.58,253.43,10.5037]
[1737818726751,0.39393313,253.58,253.47,3.9451]
[1737818726957,0.39393313,253.65,253.43,6.558]
[1737818727138,0.39393313,253.65,253.54,3.944]
[1737818727735,0.39393313,253.65,253.45,9.8638]
[1737818727736,0.39393313,253.65,253.55,3.9439]
[1737818728055,0.39393313,253.67,253.57,4.0066]
[1737818728762,1.18223313,253.69,253.57,4.0066]
[1737818728931,6.145,253.71,253.57,4.0066]
[1737818728932,6.9333,253.71,253.57,4.0066]
[1737818729137,1.6613,253.74,253.57,13.8658]
[1737818729446,2.9699,253.81,253.57,13.8658]
[1737818729447,0.39393313,253.8,253.57,13.8658]
[1737818729649,1.39383313,253.77,253.57,13.8658]
[1737818729843,0.39393313,253.77,253.57,13.8658]
[1737818730047,23.776884,253.75,253.57,13.8658]
[1737818730264,0.39393313,253.74,253.57,13.3658]
[1737818731159,0.7882,253.74,253.57,13.3658]
[1737818731460,0.39393313,253.73,253.57,13.3658]
[1737818731833,24.17081713,253.73,253.57,3.5066]
[1737818732042,20.0,253.7,253.56,6.558]
[1737818732368,24.17081713,253.69,253.56,6.558]
[1737818732551,24.17081713,253.69,253.55,5.5871]
[1737818732552,23.776884,253.67,253.49,3.9448]
[1737818732737,23.776884,253.62,253.49,3.9448]
[1737818732941,20.0,253.59,253.5,4.0077]
[1737818733656,0.39393313,253.66,253.5,4.0077]
[1737818734057,0.39393313,253.66,253.52,1.6432]
[1737818734666,20.0,253.7,253.52,1.6432]
[1737818734971,24.17081713,253.69,253.53,3.9443]
[1737818735268,20.0,253.61,253.52,1.6432]
[1737818735565,0.39393313,253.6,253.52,1.6432]
[1737818735780,0.39393313,253.6,253.52,5.5875]
[1737818735975,20.0,253.61,253.52,5.5875]
[1737818736162,9.99606365,253.68,253.52,5.5875]
[1737818736355,0.39393313,253.67,253.52,5.5875]
[1737818736872,20.0,253.68,253.52,15.4486]
[1737818737677,0.39393313,253.7,253.52,15.4486]
[1737818738283,24.17081713,253.73,253.52,15.4486]
[1737818738771,23.776884,253.69,253.52,15.4486]
[1737818738970,0.39393313,253.68,253.52,15.4486]
[1737818739170,20.0,253.72,253.52,15.4486]
[1737818739468,1.18213313,253.73,253.52,15.4486]
[1737818739687,0.39393313,253.78,253.56,26.558]
[1737818740177,1.39383313,253.78,253.56,26.558]
[1737818740376,23.776884,253.77,253.56,26.558]
[1737818740577,0.39393313,253.76,253.56,26.558]
[1737818740750,20.0,253.74,253.57,13.8028]
[1737818740946,0.39393313,253.73,253.57,13.8028]
[1737818741379,24.17081713,253.73,253.57,13.8028]
[1737818741679,20.0,253.74,253.57,13.8028]
[1737818741680,0.7876,253.91,253.65,20.0]
[1737818741979,0.39393313,253.9,253.66,6.558]
[1737818742185,20.0,253.87,253.66,6.558]
[1737818742477,0.39393313,253.9,253.66,6.558]
[1737818742686,20.39393313,253.9,253.66,6.558]
[1737818742861,24.564584,253.89,253.67,13.7974]
[1737818743050,0.39393313,253.88,253.67,13.7974]
[1737818743250,20.0,253.86,253.67,3.9421]
[1737818743460,0.39393313,253.85,253.67,3.9421]
[1737818743962,1.39383313,253.85,253.67,3.9421]
[1737818744390,20.0,253.81,253.66,6.558]
[1737818744559,24.17081713,253.8,253.66,6.558]
[1737818744876,24.564984,253.76,253.66,6.558]
[1737818745080,0.39393313,253.75,253.66,6.558]
[1737818745461,20.0,253.62,253.43,6.3486]
[1737818745663,6.17989401,253.61,253.51,30.0]
[1737818745974,0.39393313,253.64,253.49,3.9448]
[1737818746147,0.39393313,253.64,253.43,10.2943]
[1737818746354,23.776884,253.62,253.44,3.9455]
[1737818746555,0.39393313,253.61,253.47,3.9452]
[1737818746856,1.18253313,253.61,253.58,312.0]
[1737818747079,0.7886,253.61,253.58,312.0]
[1737818747877,23.776884,253.6,253.43,6.3486]
[1737818748174,0.39393313,253.59,253.43,6.3486]
[1737818748377,0.39393313,253.59,253.43,10.2943]
[1737818748857,1.18253313,253.59,253.43,10.2943]
[1737818749054,1.18253313,253.59,253.44,3.9455]
[1737818749250,1.18253313,253.59,253.45,3.9454]
[1737818750985,1.18253313,253.59,253.54,312.0]
[1737818752573,0.39393313,253.59,253.43,6.3486]
[1737818752876,0.39393313,253.66,253.5,4.0076]
[1737818753866,1.18233313,253.66,253.5,4.0076]
[1737818754060,43.776884,253.65,253.5,4.0076]
[1737818754380,0.39393313,253.64,253.5,4.0076]
[1737818755087,0.7885,253.63,253.5,0.063]
[1737818755274,0.39393313,253.62,253.5,0.063]
[1737818755668,0.39393313,253.62,253.53,312.0]
[1737818756180,0.39393313,253.62,253.5,4.0077]
[1737818756752,1.18243313,253.62,253.5,0.063]
[1737818757365,0.39393313,253.62,253.5,4.0077]
[1737818757564,1.21243313,253.64,253.5,4.0077]
[1737818757781,0.03,253.64,253.5,4.0077]
[1737818757975,0.8185,253.64,253.5,13.8696]
[1737818758313,0.39393313,253.63,253.5,4.0077]
[1737818758777,0.7885,253.62,253.5,0.063]
[1737818758976,24.17081713,253.61,253.5,0.063]
[1737818760480,20.0,253.58,253.5,0.063]
[1737818760688,0.9999,253.5,253.34,3.9472]
[1737818760862,30.0,253.55,253.34,3.9472]
[1737818760863,0.789,253.48,253.34,3.9472]
[1737818761062,0.39393313,253.47,253.34,3.9472]
[1737818761262,0.39393313,253.47,253.37,3.9467]
[1737818761891,0.39393313,253.49,253.37,3.9467]
[1737818762093,20.7889,253.52,253.38,4.0095]
[1737818762301,20.0,253.52,253.38,4.0095]
[1737818762596,0.7888,253.54,253.38,4.0095]
[1737818762597,0.39393313,253.57,253.38,13.8761]
[1737818762768,0.39393313,253.56,253.38,13.8761]
[1737818763097,23.776884,253.6,253.38,4.0095]
[1737818763299,20.0,253.57,253.38,4.0095]
[1737818763498,0.39393313,253.56,253.38,4.0095]
[1737818764294,23.776884,253.52,253.38,4.0095]
[1737818764473,0.7887,253.55,253.38,4.0095]
[1737818764474,20.0,253.5,253.38,0.063]
[1737818764676,0.39393313,253.49,253.38,0.063]
[1737818764893,24.17081713,253.49,253.38,0.063]
[1737818765095,23.776884,253.49,253.39,3.9464]
[1737818765292,20.0,253.52,253.39,3.9464]
[1737818765498,0.39393313,253.51,253.39,3.9464]
[1737818765809,0.39393313,253.54,253.39,3.9464]
[1737818766091,24.17081713,253.54,253.39,3.9464]
[1737818766268,23.776884,253.52,253.39,3.9464]
[1737818766472,0.39393313,253.51,253.39,3.9464]
[1737818767401,23.776884,253.5,253.39,3.9464]
[1737818768199,0.39393313,253.49,253.38,0.063]
[1737818769279,0.789,253.48,253.38,4.0095]
[1737818769480,1.18273313,253.54,253.38,4.0095]
[1737818769681,23.776884,253.53,253.38,4.0095]
[1737818769879,0.7888,253.54,253.38,4.0095]
[1737818770394,23.776884,253.53,253.38,4.0095]
[1737818770585,24.17081713,253.53,253.38,4.0095]
[1737818770899,1.18273313,253.53,253.38,4.0095]
[1737818771198,23.776884,253.52,253.38,4.0095]
[1737818771973,0.39393313,253.51,253.38,4.0095]
[1737818772272,0.39393313,253.51,253.38,0.063]
[1737818772479,0.39393313,253.51,253.38,4.0096]
[1737818773001,1.18283313,253.51,253.38,4.0096]
[1737818773189,23.776884,253.5,253.38,4.0096]
[1737818773391,0.39393313,253.49,253.38,4.0096]
[1737818773998,23.776884,253.5,253.38,4.0096]
[1737818774174,0.7888,253.53,253.38,4.0096]
[1737818774800,1.18273313,253.55,253.38,33.8762]
[1737818775103,0.39393313,253.55,253.38,33.8762]
[1737818775308,0.39393313,253.59,253.41,20.0]
[1737818775488,1.18263313,253.59,253.41,20.0]
[1737818775876,1.18263313,253.59,253.39,1.5627]
[1737818776093,0.7887,253.59,253.41,20.0]
[1737818776396,0.7886,253.61,253.42,13.811]
[1737818776695,7.7148,253.63,253.42,13.811]
[1737818776696,0.7885,253.63,253.46,20.0]
[1737818776902,0.42393313,253.64,253.46,20.0]
[1737818777200,1.21243313,253.64,253.46,20.0]
[1737818777402,0.03,253.64,253.46,20.0]
[1737818778194,0.8185,253.64,253.46,20.0]
[1737818778502,0.7885,253.62,253.47,3.9452]
[1737818778806,0.39393313,253.61,253.47,3.9452]
[1737818778988,24.17081713,253.61,253.47,3.9452]
[1737818779184,24.17081713,253.61,253.45,3.9454]
[1737818779384,20.39393313,253.61,253.45,3.9454]
[1737818780097,24.565484,253.6,253.45,3.9454]
[1737818780297,20.0,253.57,253.43,6.1001]
[1737818780478,0.39393313,253.56,253.43,10.0458]
[1737818780679,0.39393313,253.56,253.43,6.1001]
[1737818780880,23.776884,253.55,253.43,6.1001]
[1737818781091,0.39393313,253.54,253.43,6.1001]
[1737818781496,0.39393313,253.54,253.46,0.063]
[1737818782406,0.7886,253.61,253.46,4.0083]
[1737818782604,0.7886,253.61,253.46,24.0083]
[1737818783331,23.776884,253.6,253.46,24.0083]
[1737818784184,23.776884,253.6,253.46,33.8717]
[1737818784379,0.39393313,253.6,253.46,33.8717]
[1737818784596,0.39393313,253.6,253.46,4.0083]
[1737818785401,23.776884,253.58,253.46,4.0083]
[1737818785601,0.39393313,253.57,253.46,4.0083]
[1737818786615,0.7887,253.56,253.46,4.0083]
[1737818786785,0.7887,253.58,253.46,4.0083]
[1737818787105,0.39393313,253.57,253.46,4.0083]
[1737818787413,24.17081713,253.57,253.46,4.0083]
[1737818787791,1.18263313,253.57,253.46,4.0083]
[1737818787998,1.18263313,253.57,253.46,0.063]
[1737818788518,1.18263313,253.57,253.46,4.0083]
[1737818788881,0.39393313,253.57,253.46,4.0083]
[1737818789103,0.39393313,253.58,253.46,4.0083]
[1737818789982,24.95931713,253.63,253.46,4.0083]
[1737818790511,23.776884,253.59,253.46,0.063]
[1737818790712,0.39393313,253.58,253.46,0.063]
[1737818791904,23.776884,253.53,253.46,0.063]
[1737818792117,0.39393313,253.52,253.46,0.063]
[1737818793822,23.776884,253.5,253.46,0.063]
[1737818793997,0.39393313,253.49,253.46,0.063]
[1737818794694,0.39393313,253.49,253.46,3.063]
[1737818795517,23.776884,253.47,253.46,3.063]
[1737818795690,0.7889,253.5,253.46,3.063]
[1737818795896,0.39393313,253.52,253.46,3.063]
[1737818796596,20.0,253.56,253.46,3.063]
[1737818796597,23.776884,253.54,253.46,6.063]
[1737818796806,0.39393313,253.53,253.46,6.063]
[1737818797401,1.18273313,253.53,253.46,6.063]
[1737818798518,2.36563313,253.59,253.46,6.063]
[1737818798719,0.7887,253.58,253.47,1.5859]
[1737818798888,0.03,253.63,253.47,1.5859]
[1737818799087,0.42393313,253.63,253.51,20.0]
[1737818799312,0.03,253.63,253.52,3.9444]
[1737818799902,0.42393313,253.63,253.5,3.9447]
[1737818800514,0.03,253.63,253.51,20.0]
[1737818800896,0.42393313,253.63,253.51,20.0]
[1737818801320,23.776884,253.62,253.52,3.9444]
[1737818801521,0.39393313,253.61,253.52,3.9444]
[1737818801726,0.39393313,253.61,253.48,6.0732]
[1737818801911,23.776884,253.62,253.5,3.9446]
[1737818802112,24.17081713,253.62,253.5,3.9446]
[1737818802921,1.18243313,253.62,253.5,3.9446]
[1737818803104,21.18243313,253.62,253.47,1.5859]
[1737818803427,23.776884,253.6,253.48,30.0]
[1737818803722,1.18243313,253.62,253.47,1.5859]
[1737818803723,0.39393313,253.59,253.47,1.5859]
[1737818804409,0.39393313,253.61,253.47,1.5859]
[1737818804813,0.39393313,253.61,253.5,3.0]
[1737818805016,1.18253313,253.61,253.5,6.9447]
[1737818805211,23.776884,253.6,253.5,6.9447]
[1737818805925,0.7886,253.6,253.5,6.9447]
[1737818806228,0.39393313,253.59,253.52,30.0]
[1737818806423,24.17081713,253.59,253.52,30.0]
[1737818806730,23.776884,253.59,253.52,30.0]
[1737818806917,23.776884,253.59,253.5,6.9446]
[1737818807912,24.595484,253.59,253.5,6.9446]
[1737818808105,24.595484,253.59,253.5,3.0]
[1737818808502,24.595484,253.59,253.5,6.9447]
[1737818808731,24.595484,253.59,253.5,3.0]
[1737818809407,24.17081713,253.58,253.5,3.0]
[1737818809821,0.39393313,253.58,253.5,3.0]
[1737818810317,0.03,253.59,253.5,3.0]
[1737818810524,23.806884,253.59,253.5,6.9447]
[1737818811402,0.8186,253.59,253.5,3.0]
[1737818811607,0.39393313,253.58,253.5,3.0]
[1737818812630,0.39393313,253.58,253.5,6.9447]
[1737818812826,0.03,253.59,253.5,6.9447]
[1737818813508,0.03,253.59,253.5,16.8066]
[1737818814434,0.03,253.59,253.5,6.9447]
[1737818814652,0.03,253.59,253.53,20.0]
[1737818815744,0.03,253.59,253.54,1.5954]
[1737818815961,0.03,253.59,253.55,20.0]
[1737818816535,0.03,253.59,253.57,20.0]
[1737818816739,0.03,253.59,253.56,3.9438]
[1737818817030,0.03,253.59,253.52,33.9444]
[1737818818366,0.03,253.59,253.52,30.0]
[1737818819136,0.03,253.59,253.52,33.9444]
[1737818819543,0.03,253.59,253.52,3.9444]
[1737818819740,0.03,253.59,253.5,6.9446]
[1737818820651,25.446484,253.59,253.5,3.063]
[1737818820861,0.39393313,253.58,253.5,3.063]
[1737818821553,0.03,253.59,253.5,7.0077]
[1737818822837,0.03,253.59,253.5,3.063]
[1737818823030,0.03,253.59,253.5,7.0076]
[1737818824734,0.03,253.59,253.5,3.063]
[1737818825960,0.42393313,253.59,253.5,3.063]
[1737818826626,1.21253313,253.59,253.5,3.063]
[1737818827027,23.776884,253.58,253.5,3.063]
[1737818827257,0.39393313,253.57,253.5,3.063]
[1737818827756,23.776884,253.52,253.5,3.063]
[1737818827940,0.39393313,253.51,253.5,3.063]
[1737818828756,0.03,253.59,253.5,3.063]
[1737818828962,0.39393313,253.58,253.5,3.063]
[1737818829354,23.776884,253.56,253.5,3.063]
[1737818829545,0.39393313,253.55,253.5,3.063]
[1737818830855,23.776884,253.54,253.5,3.063]
[1737818831060,23.776884,253.52,253.5,3.063]
[1737818831272,0.39393313,253.51,253.5,3.063]
[1737818831567,0.39393313,253.51,253.5,0.0001]
[1737818831731,20.0,253.47,253.46,9.063]
[1737818831937,44.17081713,253.47,253.46,7.51631567]
[1737818832850,44.95981713,253.47,253.46,7.51631567]
[1737818834666,44.17081713,253.47,253.46,7.51631567]
[1737818834857,0.39393313,253.47,253.46,7.51631567]
[1737818835664,24.17081713,253.47,253.46,7.51631567]
[1737818835845,23.776884,253.47,253.46,7.51631567]
[1737818837252,1.18283313,253.5,253.46,7.51631567]
[1737818839069,21.18283313,253.5,253.46,7.51631567]
[1737818839364,20.39393313,253.5,253.46,7.51631567]
[1737818839741,23.776884,253.48,253.46,7.51631567]
[1737818840157,23.776884,253.49,253.46,7.51631567]
[1737818840444,0.39393313,253.56,253.46,7.51631567]
[1737818840647,0.7888,253.53,253.46,7.51631567]
[1737818840846,23.776884,253.52,253.46,7.51631567]
[1737818841147,20.0,253.56,253.46,7.51631567]
[1737818841344,20.39393313,253.56,253.46,7.51631567]
[1737818841553,20.0,253.52,253.46,7.51631567]
[1737818842339,9.6792,253.59,253.46,7.51631567]
[1737818842340,0.39393313,253.58,253.46,7.51631567]
[1737818842545,1.18263313,253.58,253.47,3.9452]
[1737818843173,23.776884,253.57,253.47,3.9452]
[1737818843393,0.39393313,253.56,253.47,3.9452]
[1737818844754,0.7887,253.57,253.48,5.4727]
[1737818844969,0.03,253.52,253.48,5.4727]
[1737818846958,0.03,253.52,253.46,11.52461567]
[1737818849083,0.03,253.52,253.46,7.57931567]
[1737818849390,0.42393313,253.52,253.46,7.57931567]
[1737818851384,23.776884,253.5,253.46,7.57931567]
[1737818851683,24.17081713,253.5,253.46,7.57931567]
[1737818851986,43.776884,253.47,253.46,7.57931567]
[1737818852876,43.776884,253.47,253.46,1.567e-05]
[1737818853075,52.31361713,253.47,253.46,1.567e-05]
[1737818853697,53.10261713,253.47,253.46,1.567e-05]
[1737818855274,44.95981713,253.47,253.46,1.567e-05]
[1737818855475,0.7889,253.5,253.46,1.567e-05]
[1737818855685,0.39393313,253.49,253.46,1.567e-05]
[1737818855972,20.7889,253.5,253.46,1.567e-05]
[1737818856173,0.7889,253.5,253.46,1.567e-05]
[1737818856366,0.42393313,253.52,253.46,1.567e-05]
[1737818856572,1.21283313,253.52,253.46,1.567e-05]
[1737818856984,23.776884,253.51,253.46,1.567e-05]
[1737818857189,1.21283313,253.52,253.46,1.567e-05]
[1737818857691,24.565784,253.51,253.46,1.567e-05]
[1737818858487,0.39393313,253.5,253.46,1.567e-05]
[1737818858800,23.776884,253.47,253.46,1.567e-05]
[1737818859091,24.17081713,253.47,253.46,1.567e-05]
[1737818859798,23.776884,253.47,253.46,1.567e-05]
[1737818859999,0.7889,253.51,253.46,1.567e-05]
[1737818860206,0.39393313,253.5,253.46,1.567e-05]
[1737818861598,0.7889,253.49,253.46,1.567e-05]
[1737818861786,20.0,253.5,253.46,1.567e-05]
[1737818862102,0.8189,253.52,253.46,1.567e-05]
[1737818862270,23.776884,253.51,253.46,1.567e-05]
[1737818862774,0.39393313,253.5,253.46,1.567e-05]
[1737818862975,23.776884,253.48,253.46,1.567e-05]
[1737818863202,24.17081713,253.48,253.46,1.567e-05]
[1737818863379,23.776884,253.48,253.46,1.567e-05]
[1737818863902,23.776884,253.5,253.46,1.567e-05]
[1737818864597,0.39393313,253.49,253.46,1.567e-05]
[1737818865599,24.565784,253.5,253.46,1.567e-05]
[1737818866202,0.42393313,253.52,253.46,1.567e-05]
[1737818866398,0.03,253.52,253.46,1.567e-05]
[1737818867900,0.8188,253.52,253.46,1.567e-05]
[1737818868095,0.03,253.52,253.46,1.567e-05]
[1737818869979,23.776884,253.51,253.46,1.567e-05]
[1737818871591,24.565784,253.51,253.46,1.567e-05]
[1737818877383,0.39393313,253.5,253.46,1.567e-05]
[1737818877777,23.776884,253.47,253.46,1.567e-05]